fUSD/lending_fUSD_20260311
["ID","MTS","AMOUNT","RATE_DAILY","PERIOD"]
[408187927,1773196237640,-4159.4,0.00016922,2]
[408187928,1773196237697,-5604.90051099,0.00016922,2]
[408187929,1773196237706,-150.99,0.00016922,2]
[408187930,1773196237716,-2917.19,0.00016922,2]
[408187931,1773196237725,-502.0,0.00017,2]
[408187932,1773196237735,-1209.26,0.00017001,2]
[408187933,1773196237744,-2351.0,0.00017005,2]
[408187934,1773196237753,-3009.71,0.00017053,2]
[408187935,1773196237763,-269.07433783,0.0001726,2]
[408187936,1773196237772,-169.38,0.0001734,2]
[408187937,1773196237782,-150.0,0.00017454,2]
[408187938,1773196237791,-1209.26,0.00017501,2]
[408187939,1773196237800,-736.0,0.00017708,2]
[408187940,1773196237810,-11003.37751011,0.00017763,2]
[408187941,1773196237819,-800.9737091,0.00017808,2]
[408187942,1773196237828,-200.0,0.00017847,2]
[408187943,1773196237837,-534.3228567,0.000179,2]
[408187944,1773196237847,-164.52,0.000179,2]
[408187945,1773196237856,-2000.0,0.00017935,2]
[408187947,1773196237866,-500.0,0.00017999,2]
[408187948,1773196237875,-500.0,0.00017999,2]
[408187949,1773196237884,-527.85855313,0.00017999,2]
[408187950,1773196237892,-1209.26,0.00018001,2]
[408187951,1773196237901,-23544.18,0.00018036,2]
[408187952,1773196237911,-250.0,0.00018317,2]
[408187953,1773196237920,-161.0,0.000184,2]
[408187954,1773196237929,-2807.0,0.000184,2]
[408187955,1773196237939,-823.0,0.00018477,2]
[408187956,1773196237948,-169.38,0.00018496,2]
[408187957,1773196237957,-1209.26,0.00018501,2]
[408187958,1773196237967,-3292.0,0.00018706,2]
[408187959,1773196237976,-161.0,0.0001872,2]
[408187960,1773196237985,-762.67773705,0.00018821,2]
[408187961,1773196237994,-5688.65,0.00018851,2]
[408187962,1773196238003,-260.99271339,0.00019,2]
[408187963,1773196238012,-1209.26,0.00019001,2]
[408187964,1773196238021,-1005.0,0.0001904,2]
[408187965,1773196238031,-485.24,0.00019061,2]
[408187966,1773196238040,-278.0,0.00019104,2]
[408187967,1773196238049,-371.0,0.00019113,2]
[408187968,1773196238058,-278.0,0.00019153,2]
[408187969,1773196238067,-150.14636363,0.00019178,2]
[408187970,1773196238077,-198.14,0.000192,2]
[408187971,1773196238086,-278.0,0.00019208,2]
[408187972,1773196238099,-485.24,0.00019335,2]
[408187973,1773196238108,-278.0,0.00019347,2]
[408187974,1773196238118,-848.0,0.0001936,2]
[408187975,1773196238128,-278.0,0.00019361,2]
[408187976,1773196238138,-278.0,0.00019439,2]
[408187977,1773196238148,-278.0,0.00019443,2]
[408187978,1773196238157,-278.0,0.00019529,2]
[408187979,1773196238167,-278.0,0.00019545,2]
[408187980,1773196238176,-278.0,0.0001958,2]
[408187981,1773196238186,-292.37,0.000196,30]
[408187982,1773196238195,-485.24,0.00019609,2]
[408187983,1773196238204,-278.0,0.00019622,2]
[408187984,1773196238213,-278.0,0.00019626,2]
[408187985,1773196238222,-169.38,0.00019653,2]
[408187986,1773196238231,-278.0,0.00019666,2]
[408187987,1773196238240,-2339.0,0.0001968,2]
[408187988,1773196238250,-308.0,0.0001968,2]
[408187989,1773196238259,-150.0,0.00019725,2]
[408187990,1773196238268,-150.0,0.00019725,2]
[408187991,1773196238277,-150.0,0.00019725,2]
[408187992,1773196238286,-500.0,0.00019725,2]
[408187993,1773196238296,-500.0,0.00019725,2]
[408187994,1773196238305,-500.0,0.00019725,2]
[408187995,1773196238314,-500.0,0.00019725,2]
[408187996,1773196238324,-500.0,0.00019725,2]
[408187997,1773196238333,-500.0,0.00019725,2]
[408187998,1773196238342,-500.0,0.00019725,2]
[408187999,1773196238351,-150.0,0.00019725,2]
[408188000,1773196238360,-150.0,0.00019725,2]
[408188001,1773196238370,-150.0,0.00019725,2]
[408188002,1773196238380,-500.0,0.00019725,2]
[408188003,1773196238390,-500.0,0.00019725,2]
[408188004,1773196238399,-500.0,0.00019725,2]
[408188005,1773196238408,-500.0,0.00019725,2]
[408188006,1773196238417,-500.0,0.00019725,2]
[408188007,1773196238427,-252.392087,0.00019725,2]
[408188008,1773196238437,-500.0,0.00019725,2]
[408188009,1773196238446,-150.0,0.00019725,2]
[408188010,1773196238456,-500.0,0.00019725,2]
[408188011,1773196238466,-500.0,0.00019725,2]
[408188012,1773196238475,-150.0,0.00019725,2]
[408188013,1773196238484,-500.0,0.00019725,2]
[408188014,1773196238493,-150.0,0.00019725,2]
[408188015,1773196238503,-500.0,0.00019725,2]
[408188016,1773196238512,-500.0,0.00019725,2]
[408188017,1773196238521,-150.0,0.00019725,2]
[408188018,1773196238530,-150.0,0.00019725,2]
[408188019,1773196238540,-500.0,0.00019725,2]
[408188020,1773196238549,-150.0,0.00019725,2]
[408188021,1773196238558,-150.0,0.00019725,2]
[408188022,1773196238568,-500.0,0.00019726,2]
[408188023,1773196238577,-500.0,0.00019726,2]
[408188024,1773196238591,-439.94423244,0.00019726,2]
[408188025,1773196238600,-1767.47,0.00019726,2]
[408188026,1773196238609,-1767.47,0.00019726,2]
[408188027,1773196238619,-1767.47,0.00019726,2]
[408188028,1773196238628,-1767.47,0.00019726,2]
[408188029,1773196238638,-1767.47,0.00019726,2]
[408188030,1773196238647,-1767.47,0.00019726,2]
[408188031,1773196238657,-1767.47,0.00019726,2]
[408188032,1773196238668,-1767.47,0.00019726,2]
[408188033,1773196238677,-1767.47,0.00019726,2]
[408188034,1773196238686,-1767.47,0.00019726,2]
[408188035,1773196238695,-1767.47,0.00019726,2]
[408188036,1773196238704,-1767.47,0.00019726,2]
[408188037,1773196238714,-1767.47,0.00019726,2]
[408188038,1773196238723,-1767.47,0.00019726,2]
[408188039,1773196238733,-1767.47,0.00019726,2]
[408188040,1773196238742,-1767.47,0.00019726,2]
[408188041,1773196238751,-1767.47,0.00019726,2]
[408188042,1773196238761,-1767.47,0.00019726,2]
[408188043,1773196238770,-1767.47,0.00019726,2]
[408188044,1773196238780,-1767.47,0.00019726,2]
[408188045,1773196238789,-1767.47,0.00019726,2]
[408188046,1773196238799,-1767.47,0.00019726,2]
[408188047,1773196238808,-1767.47,0.00019726,2]
[408188048,1773196238817,-1767.6607929,0.00019726,2]
[408188049,1773196238826,-500.0,0.00019726,2]
[408188050,1773196238836,-500.62592271,0.00019726,2]
[408188051,1773196238845,-1198.58,0.00019726,2]
[408188052,1773196238854,-1198.58,0.00019726,2]
[408188053,1773196238863,-1198.58,0.00019726,2]
[408188054,1773196238873,-1198.58,0.00019726,2]
[408188055,1773196238882,-1198.58,0.00019726,2]
[408188056,1773196238891,-1198.58,0.00019726,2]
[408188057,1773196238900,-1198.58,0.00019726,2]
[408188058,1773196238910,-1198.58,0.00019726,2]
[408188059,1773196238919,-1198.58,0.00019726,2]
[408188060,1773196238928,-1198.58,0.00019726,2]
[408188061,1773196238937,-1198.58,0.00019726,2]
[408188062,1773196238946,-1198.58,0.00019726,2]
[408188063,1773196238956,-1198.58,0.00019726,2]
[408188064,1773196238965,-1198.58,0.00019726,2]
[408188065,1773196238975,-1198.58,0.00019726,2]
[408188066,1773196238984,-1198.58,0.00019726,2]
[408188067,1773196238994,-1198.58,0.00019726,2]
[408188068,1773196239003,-1198.58,0.00019726,2]
[408188069,1773196239012,-1198.58,0.00019726,2]
[408188070,1773196239021,-1198.58,0.00019726,2]
[408188071,1773196239030,-1198.58,0.00019726,2]
[408188072,1773196239040,-1198.58,0.00019726,2]
[408188073,1773196239049,-1198.58,0.00019726,2]
[408188074,1773196239058,-1198.69073917,0.00019726,2]
[408188075,1773196239068,-500.0,0.00019726,2]
[408188076,1773196239078,-500.0,0.00019726,2]
[408188077,1773196239087,-500.0,0.00019726,2]
[408188078,1773196239096,-220.0803754,0.00019726,2]
[408188079,1773196239106,-300.0,0.00019726,2]
[408188080,1773196239115,-300.0,0.00019726,2]
[408188081,1773196239125,-300.0,0.00019726,2]
[408188082,1773196239134,-300.0,0.00019726,2]
[408188083,1773196239143,-300.0,0.00019726,2]
[408188084,1773196239153,-300.0,0.00019726,2]
[408188085,1773196239163,-300.0,0.00019726,2]
[408188086,1773196239172,-300.0,0.00019726,2]
[408188087,1773196239182,-300.0,0.00019726,2]
[408188088,1773196239191,-300.0,0.00019726,2]
[408188089,1773196239200,-300.0,0.00019726,2]
[408188090,1773196239209,-300.0,0.00019726,2]
[408188091,1773196239218,-303.10685583,0.00019726,2]
[408188092,1773196239228,-2000.0,0.00019728,2]
[408188093,1773196239237,-150.0,0.0001978,2]
[408188094,1773196239246,-150.0,0.0001978,2]
[408188095,1773196239255,-150.0,0.0001978,2]
[408188096,1773196239264,-500.0,0.0001978,2]
[408188097,1773196239274,-648.99053488,0.0001978,2]
[408188098,1773196239283,-500.0,0.0001978,2]
[408188099,1773196239292,-500.0,0.0001978,2]
[408188100,1773196239301,-500.0,0.0001978,2]
[408188101,1773196239310,-625.41390864,0.0001978,2]
[408188102,1773196239319,-500.0,0.0001978,2]
[408188103,1773196239329,-150.0,0.0001978,2]
[408188104,1773196239338,-150.0,0.0001978,2]
[408188105,1773196239347,-150.0,0.0001978,2]
[408188106,1773196239495,-500.0,0.0001978,2]
[408188107,1773196239505,-600.74757442,0.0001978,2]
[408188108,1773196239516,-500.0,0.0001978,2]
[408188109,1773196239527,-500.0,0.0001978,2]
[408188110,1773196239537,-500.0,0.0001978,2]
[408188111,1773196239546,-500.0,0.0001978,2]
[408188112,1773196239556,-150.20209622,0.0001978,2]
[408188113,1773196239565,-500.0,0.0001978,2]
[408188114,1773196239575,-500.0,0.0001978,2]
[408188115,1773196239585,-150.0,0.0001978,2]
[408188116,1773196239599,-505.28661314,0.0001978,2]
[408188117,1773196239609,-500.0,0.0001978,2]
[408188118,1773196239619,-500.0,0.0001978,2]
[408188119,1773196239629,-150.0,0.0001978,2]
[408188120,1773196239639,-500.0,0.0001978,2]
[408188121,1773196239649,-150.0,0.000198,14]
[408188122,1773196239659,-150.0,0.00019835,2]
[408188123,1773196239670,-150.0,0.00019835,2]
[408188124,1773196239680,-150.0,0.00019835,2]
[408188125,1773196239689,-500.0,0.00019835,2]
[408188126,1773196239699,-500.0,0.00019835,2]
[408188127,1773196239710,-500.0,0.00019835,2]
[408188128,1773196239720,-500.0,0.00019835,2]
[408188129,1773196239730,-500.0,0.00019835,2]
[408188130,1773196239739,-150.0,0.00019835,2]
[408188131,1773196239750,-207.78302129,0.00019835,2]
[408188132,1773196239760,-500.0,0.00019835,2]
[408188133,1773196239769,-150.0,0.00019835,2]
[408188134,1773196239779,-500.0,0.00019835,2]
[408188135,1773196239788,-204.90199074,0.00019835,2]
[408188136,1773196239799,-500.0,0.00019835,2]
[408188137,1773196239808,-500.0,0.00019835,2]
[408188138,1773196239816,-500.0,0.00019835,2]
[408188139,1773196239826,-500.0,0.00019835,2]
[408188140,1773196239835,-150.0,0.00019835,2]
[408188141,1773196239843,-500.0,0.00019835,2]
[408188142,1773196239852,-153.26158094,0.00019835,2]
[408188143,1773196239861,-209.8782102,0.00019835,2]
[408188144,1773196239870,-453.86401705,0.00019835,2]
[408188145,1773196239879,-278.0,0.00019877,2]
[408188146,1773196239888,-10000.0,0.0001988,2]
[408188147,1773196239897,-485.24,0.00019883,2]
[408188148,1773196239906,-275.17021168,0.00019889,2]
[408188149,1773196239915,-250.58262965,0.00019889,2]
[408188150,1773196239924,-205.57005763,0.00019889,2]
[408188151,1773196239933,-500.0,0.00019889,2]
[408188152,1773196239943,-500.0,0.00019889,2]
[408188153,1773196239952,-500.0,0.00019889,2]
[408188154,1773196239961,-500.0,0.00019889,2]
[408188155,1773196239970,-500.0,0.00019889,2]
[408188156,1773196239979,-200.54971952,0.00019889,2]
[408188157,1773196239988,-500.0,0.00019889,2]
[408188158,1773196239997,-150.0,0.00019889,2]
[408188159,1773196240006,-500.0,0.00019889,2]
[408188160,1773196240015,-500.0,0.00019889,2]
[408188161,1773196240023,-342.97136106,0.00019889,2]
[408188162,1773196240033,-500.0,0.00019889,2]
[408188163,1773196240042,-500.0,0.00019889,2]
[408188164,1773196240051,-152.23722252,0.00019889,2]
[408188165,1773196240061,-500.0,0.00019889,2]
[408188166,1773196240071,-500.0,0.00019898,2]
[408188167,1773196240080,-500.0,0.00019899,2]
[408188168,1773196240089,-500.0,0.00019899,2]
[408188169,1773196240098,-500.0,0.00019899,2]
[408188170,1773196240107,-176.98,0.000199,2]
[408188171,1773196240115,-1045.63398013,0.000199,2]
[408188172,1773196240124,-500.0,0.00019944,2]
[408188173,1773196240133,-500.0,0.00019944,2]
[408188174,1773196240142,-500.0,0.00019944,2]
[408188175,1773196240151,-500.0,0.00019944,2]
[408188176,1773196240159,-500.0,0.00019944,2]
[408188177,1773196240168,-450.62449707,0.00019944,2]
[408188178,1773196240177,-151.04601421,0.00019944,2]
[408188179,1773196240186,-500.0,0.00019944,2]
[408188180,1773196240194,-500.0,0.00019944,2]
[408188181,1773196240203,-500.0,0.00019944,2]
[408188182,1773196240212,-342.13396594,0.00019944,2]
[408188183,1773196240221,-500.0,0.00019944,2]
[408188184,1773196240229,-500.789707,0.00019979,2]
[408188185,1773196240238,-510.77564098,0.00019999,2]
[408188186,1773196240247,-500.0,0.00019999,2]
[408188187,1773196240256,-401.99957865,0.00019999,2]
[408188188,1773196240264,-500.0,0.00019999,2]
[408188189,1773196240273,-261.47135682,0.00019999,2]
[408188190,1773196240282,-500.0,0.00019999,2]
[408188191,1773196240290,-500.0,0.00019999,2]
[408188192,1773196240299,-500.0,0.00019999,2]
[408188193,1773196240307,-452.91213692,0.00019999,2]
[408188194,1773196240316,-500.0,0.00019999,2]
[408188195,1773196240325,-500.0,0.00019999,2]
[408188196,1773196240334,-497.54851527,0.00019999,2]
[408188197,1773196240342,-500.0,0.00019999,2]
[408188199,1773196240351,-247.41680921,0.00019999,2]
[408188200,1773196240360,-438.01500328,0.00019999,2]
[408188201,1773196240369,-500.0,0.00019999,2]
[408188202,1773196240378,-500.0,0.00019999,2]
[408188203,1773196240386,-500.0,0.00019999,2]
[408188204,1773196240395,-361.20938221,0.00019999,2]
[408188205,1773196240404,-1054.91234,0.0002,2]
[408188206,1773196240412,-30102.15105267,0.0002,7]
[408188207,1773196240422,-278.0,0.00020039,2]
[408188208,1773196240430,-155.04313062,0.00020054,2]
[408188209,1773196240439,-500.0,0.00020054,2]
[408188210,1773196240448,-508.40747753,0.00020054,2]
[408188211,1773196240458,-500.0,0.00020054,2]
[408188212,1773196240467,-172.86584287,0.00020054,2]
[408188213,1773196240475,-1000.0,0.00020096,2]
[408188214,1773196240484,-500.0,0.00020109,2]
[408188215,1773196240493,-500.0,0.00020109,2]
[408188216,1773196240502,-405.76,0.00020157,2]
[408188217,1773196240511,-500.0,0.00020163,2]
[408188218,1773196240519,-500.0,0.00020163,2]
[408188219,1773196240528,-278.0,0.00020188,2]
[408188220,1773196240537,-278.0,0.00020191,2]
[408188221,1773196240546,-159.315868,0.00020196,7]
[408188222,1773196240555,-500.0,0.00020218,2]
[408188223,1773196240564,-213.00520374,0.00020218,2]
[408188224,1773196240573,-1152.0,0.00020241,2]
[408188225,1773196240582,-278.0,0.00020254,2]
[408188226,1773196240595,-500.0,0.00020273,2]
[408188227,1773196240604,-160.0,0.00020283,2]
[408188228,1773196240614,-172.95802059,0.00020283,2]
[408188229,1773196240623,-278.0,0.00020305,2]
[408188230,1773196240634,-398.88764252,0.00020328,2]
[408188231,1773196240643,-1000.0,0.0002037,2]
[408188232,1773196240652,-278.0,0.00020466,2]
[408188233,1773196240661,-157.83,0.00020548,2]
[408188234,1773196240671,-761.0,0.00020576,2]
[408188235,1773196240680,-278.0,0.00020581,2]
[408188236,1773196240689,-278.0,0.00020585,2]
[408188237,1773196240698,-1000.0,0.00020644,2]
[408188238,1773196240708,-278.0,0.00020686,2]
[408188239,1773196240717,-278.0,0.0002075,2]
[408188240,1773196240726,-169.38,0.00020809,2]
[408188241,1773196240735,-1000.0,0.00020918,2]
[408188242,1773196240743,-278.0,0.00020941,2]
[408188243,1773196240752,-1000.0,0.00021192,2]
[408188244,1773196240762,-502.0,0.000212,5]
[408188245,1773196240770,-11003.37751011,0.00021462,2]
[408188246,1773196240779,-1000.0,0.00021466,2]
[408188247,1773196240788,-2000.0,0.00021522,2]
[408188248,1773196240797,-2806.0,0.00021592,2]
[408188249,1773196240805,-1000.0,0.0002174,2]
[408188250,1773196240815,-150.0,0.00021918,2]
[408188251,1773196240823,-150.0,0.00021918,2]
[408188252,1773196240832,-150.0,0.00021973,2]
[408188253,1773196240841,-1958.0,0.00022014,2]
[408188254,1773196240850,-161.87934117,0.00022028,2]
[408188255,1773196240859,-953.0,0.00022174,2]
[408188256,1773196240868,-5800.0,0.000225,2]
[408188257,1773196240877,-533.36,0.00022807,2]
[408188258,1773196240885,-2000.0,0.00023,2]
[408188259,1773196240895,-160.0,0.00023,2]
[408188260,1773196240903,-346.37,0.00023081,2]
[408188261,1773196240912,-578.89,0.00023249,2]
[408188262,1773196240920,-762.67773705,0.00023577,2]
[408188263,1773196240929,-496.2,0.0002378,2]
[408188264,1773196240938,-496.2,0.00024375,2]
[408188265,1773196240947,-150.0,0.00024658,2]
[408188266,1773196240955,-500.0,0.00024899,2]
[408188267,1773196240965,-456034.312325,0.000249,3]
[408188268,1773196240973,-20223.63,0.000249,7]
[408188269,1773196240983,-496.22567832,0.00024969,2]
[408188270,1773196240991,-379.0,0.00025,120]
[408188271,1773196241000,-289.981588,0.00025,2]
[408188272,1773196241009,-289.981588,0.00025,2]
[408188273,1773196241018,-289.981588,0.00025,2]
[408188274,1773196241027,-289.981588,0.00025,2]
[408188275,1773196241036,-151.000005,0.00025,2]
[408188276,1773196241045,-262.483286,0.00025,2]
[408188277,1773196241054,-262.483286,0.00025,2]
[408188278,1773196241062,-262.483286,0.00025,2]
[408188279,1773196241071,-262.483286,0.00025,2]
[408188280,1773196241080,-11003.37751011,0.00025161,2]
[408188281,1773196241089,-502.0,0.000254,9]
[408188282,1773196241098,-304.98583032,0.00025619,2]
[408188283,1773196241107,-150.0,0.0002589,2]
[408188284,1773196241116,-688.0,0.00026106,10]
[408188285,1773196241125,-2214.0,0.00026282,2]
[408188286,1773196241134,-1972.0,0.00026282,2]
[408188287,1773196241144,-215.1,0.0002636,2]
[408188288,1773196241152,-2000.0,0.000267,2]
[408188289,1773196241161,-150.0,0.00027185,2]
[408188290,1773196241170,-2807.0,0.00027335,3]
[408188291,1773196241179,-166.2,0.00027355,14]
[408188292,1773196241187,-150.0,0.00027369,2]
[408188293,1773196241196,-168.06116312,0.00027387,2]
[408188294,1773196241205,-20223.63,0.000274,7]
[408188295,1773196241214,-201.02,0.00027474,7]
[408188296,1773196241223,-182.74,0.0002781,2]
[408188297,1773196241232,-1217.178,0.00027905,2]
[408188298,1773196241240,-925.072,0.00027905,2]
[408188299,1773196241249,-1347.32,0.00027905,2]
[408188300,1773196241259,-3521.771,0.00027905,2]
[408188301,1773196241268,-2807.0,0.00028295,3]
[408188302,1773196241277,-762.67773705,0.00028333,2]
[408188303,1773196241286,-150.0,0.00028544,2]
[408188304,1773196241295,-11003.37751011,0.0002886,2]
[408188305,1773196241304,-228.97,0.00028986,7]
[408188306,1773196241313,-136405.0,0.000293,2]
[408188307,1773196241322,-502.0,0.000296,13]
[408188308,1773196241331,-5533.0,0.000297,3]
[408188309,1773196241340,-150.0,0.00029971,2]
[408188310,1773196241349,-20223.63,0.0003,7]
[408188311,1773196241358,-5533.0,0.000301,5]
[408188312,1773196241366,-2000.0,0.000304,2]
[408188313,1773196241375,-150.0,0.0003147,2]
[408188314,1773196241384,-11003.37751011,0.0003256,2]
[408188315,1773196241393,-270.07,0.000329,30]
[408188316,1773196241402,-163.0,0.00033,60]
[408188317,1773196241411,-150.0,0.00033043,2]
[408188318,1773196241420,-762.67773705,0.00033089,2]
[408188319,1773196241429,-170.38451408,0.00033619,2]
[408188320,1773196241438,-2806.0,0.00033719,11]
[408188321,1773196241447,-502.0,0.000338,17]
[408188322,1773196241455,-500.0,0.00033999,2]
[408188323,1773196241465,-1028.0,0.000341,2]
[408188324,1773196241474,-477.54327638,0.00034452,120]
[408188325,1773196241483,-1125.9722186,0.00034452,120]
[408188326,1773196241492,-326.90860454,0.00034452,120]
[408188327,1773196241501,-20223.63,0.000345,14]
[408188328,1773196241510,-150.0,0.00034696,2]
[408188329,1773196241519,-1500.0,0.00034795,2]
[408188330,1773196241528,-22429.3213968,0.00034936,2]
[408188331,1773196241536,-578.89,0.00034991,2]
[408188332,1773196241545,-162.0,0.000356,120]
[408188333,1773196241554,-215.09588616,0.00035782,2]
[408188334,1773196241563,-1091.16420161,0.00036,7]
[408188335,1773196241571,-11003.37751011,0.00036259,2]
[408188336,1773196241580,-150.0,0.0003643,2]
[408188337,1773196241592,-162.0,0.00037,120]
[408188338,1773196241601,-182.74,0.0003708,2]
[408188339,1773196241610,-164.46,0.0003709,7]
[408188340,1773196241619,-350.0,0.00037635,7]
[408188341,1773196241628,-1028.65139268,0.000378,2]
[408188342,1773196241638,-762.67773705,0.00037845,2]
[408188343,1773196241647,-163.0,0.000379,120]
[408188344,1773196241656,-350.0,0.00037977,6]
[408188345,1773196241668,-162.0,0.0003799,7]
[408188346,1773196241677,-502.0,0.00038,21]
[408188347,1773196241686,-500.0,0.00038033,30]
[408188349,1773196241695,-500.0,0.00038033,30]
[408188351,1773196241704,-500.0,0.00038033,30]
[408188352,1773196241715,-500.0,0.00038033,30]
[408188353,1773196241724,-500.0,0.00038033,30]
[408188354,1773196241733,-500.0,0.00038033,30]
[408188355,1773196241742,-500.0,0.00038033,30]
[408188356,1773196241751,-500.0,0.00038033,30]
[408188357,1773196241788,-500.0,0.00038033,30]
[408188358,1773196241797,-283.17962537,0.00038033,30]
[408188359,1773196241806,-500.0,0.00038033,30]
[408188360,1773196241815,-500.0,0.00038033,30]
[408188361,1773196241823,-500.0,0.00038033,30]
[408188362,1773196241832,-500.0,0.00038033,30]
[408188363,1773196241841,-500.0,0.00038033,30]
[408188364,1773196241850,-151.0,0.00038033,30]
[408188365,1773196241859,-500.0,0.00038033,30]
[408188366,1773196241868,-151.0,0.00038033,30]
[408188367,1773196241877,-500.0,0.00038033,30]
[408188368,1773196241886,-151.0,0.00038033,30]
[408188369,1773196241895,-500.0,0.00038033,30]
[408188370,1773196241905,-500.0,0.00038033,30]
[408188371,1773196241914,-294.23874187,0.00038033,30]
[408188372,1773196241923,-500.0,0.00038033,30]
[408188373,1773196241931,-500.0,0.00038033,30]
[408188374,1773196241940,-3739.588,0.00038049,50]
[408188375,1773196241949,-150.0,0.00038252,2]
[408188376,1773196241958,-367.99,0.00038461,7]
[408188377,1773196241967,-635.22545,0.0003875,105]
[408188378,1773196241976,-635.22546,0.0003875,105]
[408188379,1773196241985,-635.22546,0.0003875,105]
[408188380,1773196241994,-635.22546,0.0003875,105]
[408188381,1773196242003,-2588.60547753,0.0003876,2]
[408188382,1773196242011,-633.82202108,0.00038891,7]
[408188383,1773196242021,-196.5,0.00038976,7]
[408188384,1773196242029,-1000.0,0.00039015,7]
[408188385,1773196242040,-161.0,0.00039048,11]
[408188386,1773196242048,-150.0,0.000391,19]
[408188387,1773196242057,-813.876347,0.000391,29]
[408188388,1773196242066,-343.46,0.00039131,7]
[408188389,1773196242075,-151.0,0.00039145,7]
[408188390,1773196242084,-296.66609656,0.00039145,7]
[408188391,1773196242094,-151.0,0.00039145,7]
[408188392,1773196242103,-1546.7705114,0.00039145,7]
[408188393,1773196242111,-300.0,0.00039145,7]
[408188394,1773196242120,-152.0,0.00039145,7]
[408188395,1773196242130,-635.22546,0.00039145,110]
[408188396,1773196242139,-635.22545,0.00039145,110]
[408188397,1773196242151,-350.0,0.0003931,5]
[408188398,1773196242159,-5004.6580752,0.00039366,2]
[408188399,1773196242168,-353.4369477,0.00039546,6]
[408188400,1773196242177,-11003.37751011,0.00039958,15]
[408188401,1773196242186,-151.0,0.00039958,120]
[408188402,1773196242195,-156.021909,0.00039958,120]
[408188403,1773196242204,-151.0,0.00039958,120]
[408188404,1773196242213,-780.77262055,0.0004,120]
[408188405,1773196242222,-167.18972361,0.0004,120]
[408188406,1773196242231,-151.0,0.0004,30]
[408188407,1773196242241,-151.0,0.0004,30]
[408188408,1773196242251,-250.0,0.0004,68]
[408188409,1773196242260,-158.0,0.000401,21]
[408188410,1773196242270,-150.0,0.00040165,2]
[408188411,1773196242279,-167.453062,0.00040354,120]
[408188412,1773196242292,-167.453062,0.00040354,120]
[408188415,1773196242302,-167.453062,0.00040354,120]
[408188418,1773196242312,-167.453062,0.00040354,120]
[408188420,1773196242322,-1116.6901578,0.00040354,2]
[408188422,1773196242333,-170.38451406,0.00040488,120]
[408188423,1773196242341,-709.5,0.000406,90]
[408188424,1773196242350,-1087.41,0.000406,90]
[408188425,1773196242359,-289.981588,0.000406,7]
[408188426,1773196242367,-289.981588,0.000406,7]
[408188427,1773196242376,-289.981588,0.000406,7]
[408188428,1773196242385,-289.981588,0.000406,7]
[408188429,1773196242395,-262.483286,0.000406,28]
[408188430,1773196242403,-262.483286,0.000406,28]
[408188431,1773196242412,-262.483286,0.000406,28]
[408188432,1773196242422,-262.483286,0.000406,28]
[408188433,1773196242431,-10049.37928449,0.000408,60]
[408188434,1773196242440,-332.73701983,0.0004083,100]
[408188435,1773196242449,-1117.0,0.0004095,60]
[408188437,1773196242458,-361.37942272,0.00040996,2]